[Event "Meltwater Champions Chess Tour 2022: Ch"]
[Site "http://www.chessbomb.com"]
[Date "2022.05.21"]
[Round "12"]
[White "Giri, Anish"]
[Black "Vidit, Santosh Gujrathi"]
[Result "1-0"]
[ECO "C54"]
[WhiteElo "2730"]
[BlackElo "2617"]
[PlyCount "135"]
[EventDate "2022.??.??"]
[TimeControl "900+10"]
[WhiteClock "0:03:19"]
[BlackClock "0:01:29"]

1. e4 {[%emt 0:00:00]} e5 {[%emt 0:00:00]} 2. Nf3 {[%emt 0:00:00]} Nc6 {
[%emt 0:00:00]} 3. Bc4 {[%emt 0:00:00]} Nf6 {[%emt 0:00:00]} 4. d3 {[%emt 0:00:
00]} Bc5 {[%emt 0:00:00]} 5. O-O {[%emt 0:00:00]} O-O {[%emt 0:00:11]} 6. Nbd2
{[%emt 0:00:12]} d6 {[%emt 0:00:04]} 7. c3 {[%emt 0:00:00]} a5 {[%emt 0:00:07]}
8. h3 {[%emt 0:00:01]} h6 {[%emt 0:00:08]} 9. Re1 {[%emt 0:00:02]} Be6 {
[%emt 0:00:06]} 10. Bb5 {[%emt 0:00:01]} Bb6 {[%emt 0:00:31]} 11. Nc4 {[%emt 0:
00:03]} Bc5 {[%emt 0:00:03]} 12. Ba4 {[%emt 0:00:02]} Ne7 {[%emt 0:00:40]} 13.
Ncd2 {[%emt 0:00:10]} Ng6 {[%emt 0:00:13]} 14. d4 {[%emt 0:01:44]} Ba7 {
[%emt 0:00:01]} 15. Bc2 {[%emt 0:00:07]} Re8 {[%emt 0:02:00]} 16. Nf1 {[%emt 0:
00:11]} exd4 {[%emt 0:00:22]} 17. cxd4 {[%emt 0:00:31]} d5 {[%emt 0:00:04]} 18.
e5 {[%emt 0:00:05]} Ne4 {[%emt 0:00:00]} 19. Ng3 {[%emt 0:00:14]} Nxg3 {
[%emt 0:00:35]} 20. fxg3 {[%emt 0:00:02]} c5 {[%emt 0:00:38]} 21. Be3 {[%emt 0:
00:12]} Rc8 {[%emt 0:00:14]} 22. Kh2 {[%emt 0:00:49]} cxd4 {[%emt 0:03:28]} 23.
Bxd4 {[%emt 0:00:03]} Bxd4 {[%emt 0:00:31]} 24. Nxd4 {[%emt 0:00:00]} Qb6 {
[%emt 0:00:08]} 25. b3 {[%emt 0:01:16]} Bd7 {[%emt 0:00:56]} 26. e6 {[%emt 0:
01:04]} Bxe6 {[%emt 0:00:03]} 27. Bxg6 {[%emt 0:00:02]} fxg6 {[%emt 0:00:02]}
28. Nxe6 {[%emt 0:00:01]} Rxe6 {[%emt 0:00:01]} 29. Qxd5 {[%emt 0:00:00]} Rce8
{[%emt 0:00:12]} 30. Rxe6 {[%emt 0:01:09]} Qxe6 {[%emt 0:00:06]} 31. Qxa5 {
[%emt 0:00:04]} Qe5 {[%emt 0:03:32]} 32. Qxe5 {[%emt 0:00:04]} Rxe5 {[%emt 0:
00:00]} 33. Rf1 {[%emt 0:01:20]} b5 {[%emt 0:01:55]} 34. a3 {[%emt 0:08:23]}
Re3 {[%emt 0:00:50]} 35. Rf3 {[%emt 0:00:03]} Re2 {[%emt 0:00:12]} 36. g4 {
[%emt 0:00:15]} Ra2 {[%emt 0:00:01]} 37. b4 {[%emt 0:00:01]} g5 {[%emt 0:00:15]
} 38. Kg3 {[%emt 0:00:01]} Rc2 {[%emt 0:02:25]} 39. Re3 {[%emt 0:00:35]} Kf7 {
[%emt 0:00:01]} 40. Kf3 {[%emt 0:00:02]} Ra2 {[%emt 0:00:43]} 41. g3 {[%emt 0:
00:15]} Kf6 {[%emt 0:00:04]} 42. Ke4 {[%emt 0:00:27]} Ke6 {[%emt 0:00:03]} 43.
h4 {[%emt 0:00:25]} gxh4 {[%emt 0:00:12]} 44. gxh4 {[%emt 0:00:01]} g5 {
[%emt 0:00:28]} 45. hxg5 {[%emt 0:00:03]} hxg5 {[%emt 0:00:01]} 46. Rh3 {
[%emt 0:00:07]} Rf2 {[%emt 0:00:20]} 47. Kd4 {[%emt 0:00:26]} Rc2 {[%emt 0:00:
11]} 48. Rh6+ {[%emt 0:00:29]} Kd7 {[%emt 0:00:05]} 49. Ke5 {[%emt 0:00:12]}
Rc3 {[%emt 0:00:11]} 50. Kf5 {[%emt 0:00:39]} Rxa3 {[%emt 0:00:01]} 51. Rb6 {
[%emt 0:00:01]} Ra4 {[%emt 0:00:22]} 52. Rxb5 {[%emt 0:00:02]} Kc6 {[%emt 0:00:
01]} 53. Rc5+ {[%emt 0:00:31]} Kd6 {[%emt 0:00:08]} 54. Rc4 {[%emt 0:00:02]}
Kd5 {[%emt 0:00:07]} 55. Rc1 {[%emt 0:00:08]} Rxb4 {[%emt 0:00:09]} 56. Rd1+ {
[%emt 0:00:00]} Kc6 {[%emt 0:00:26]} 57. Kxg5 {[%emt 0:00:03]} Rb2 {[%emt 0:00:
08]} 58. Kg6 {[%emt 0:00:05]} Rg2 {[%emt 0:00:01]} 59. g5 {[%emt 0:00:01]} Rg3
{[%emt 0:00:01]} 60. Kf6 {[%emt 0:00:01]} Rf3+ {[%emt 0:00:01]} 61. Kg7 {
[%emt 0:00:01]} Rg3 {[%emt 0:00:00]} 62. g6 {[%emt 0:00:00]} Rg2 {[%emt 0:00:
01]} 63. Kf7 {[%emt 0:00:01]} Rf2+ {[%emt 0:00:00]} 64. Kg8 {[%emt 0:00:01]}
Rg2 {[%emt 0:00:00]} 65. g7 {[%emt 0:00:01]} Rg3 {[%emt 0:00:02]} 66. Rf1 {
[%emt 0:00:05]} Kd6 {[%emt 0:00:17]} 67. Kf7 {[%emt 0:00:02]} Rg1 {[%emt 0:00:
03]} 68. Rxg1 {[%emt 0:00:03]} 1-0

[Event "Meltwater Champions Chess Tour 2022: Ch"]
[Site "http://www.chessbomb.com"]
[Date "2022.05.22"]
[Round "15"]
[White "Shankland, Sam"]
[Black "Harikrishna, Pentala"]
[Result "1-0"]
[ECO "D38"]
[WhiteElo "2616"]
[BlackElo "2624"]
[PlyCount "51"]
[EventDate "2022.??.??"]
[TimeControl "900+10"]
[WhiteClock "0:02:36"]
[BlackClock "0:02:37"]

1. d4 {[%emt 0:00:00]} Nf6 {[%emt 0:00:00]} 2. c4 {[%emt 0:00:00]} e6 {[%emt 0:
00:00]} 3. Nf3 {[%emt 0:00:00]} d5 {[%emt 0:00:00]} 4. Nc3 {[%emt 0:00:00]} Bb4
{[%emt 0:00:02]} 5. cxd5 {[%emt 0:00:00]} exd5 {[%emt 0:00:02]} 6. Bg5 {
[%emt 0:00:00]} h6 {[%emt 0:00:12]} 7. Bh4 {[%emt 0:00:00]} Bf5 {[%emt 0:01:11]
} 8. Qb3 {[%emt 0:00:49]} Nc6 {[%emt 0:01:29]} 9. e3 {[%emt 0:00:02]} O-O {
[%emt 0:00:17]} 10. Bxf6 {[%emt 0:01:24]} Qxf6 {[%emt 0:00:06]} 11. Qxd5 {
[%emt 0:00:01]} Rfe8 {[%emt 0:01:52]} 12. Be2 {[%emt 0:00:22]} Be4 {[%emt 0:00:
51]} 13. Qc4 {[%emt 0:01:56]} b5 {[%emt 0:03:06]} 14. Qb3 {[%emt 0:03:38]} Bxf3
{[%emt 0:01:05]} 15. gxf3 {[%emt 0:00:02]} Qh4 {[%emt 0:01:03]} 16. O-O-O {
[%emt 0:03:54]} Qxf2 {[%emt 0:00:23]} 17. Bxb5 {[%emt 0:00:02]} Qxe3+ {[%emt 0:
00:05]} 18. Rd2 {[%emt 0:00:40]} Nxd4 {[%emt 0:01:44]} 19. Qxb4 {[%emt 0:00:03]
} c5 {[%emt 0:00:19]} 20. Qc4 {[%emt 0:01:03]} Red8 {[%emt 0:00:07]} 21. Rhd1 {
[%emt 0:00:30]} Rd6 {[%emt 0:01:46]} 22. Kb1 {[%emt 0:00:38]} Rc8 {[%emt 0:00:
11]} 23. Qd3 {[%emt 0:00:49]} Qe5 {[%emt 0:00:28]} 24. Qe4 {[%emt 0:00:33]} Qh5
{[%emt 0:00:01]} 25. Qg4 {[%emt 0:00:15]} Qe5 {[%emt 0:00:13]} 26. Qxc8+ {
[%emt 0:00:03]} 1-0